[Event "Live Chess"]
[Site "Chess.com"]
[Date "2024.06.01"]
[Round "-"]
[White "WildMantra69"]
[Black "Hazban"]
[Result "0-1"]
[WhiteElo "2014"]
[BlackElo "2031"]
[TimeControl "300"]
[EndTime "9:00:49 PDT"]
[Termination "Hazban won by resignation"]

1. d4 {[%clk 0:04:58.4]} 1... Nf6 {[%clk 0:04:57.8]} 2. c4 {[%clk 0:04:58.3]}
2... e5 {[%clk 0:04:57]} 3. dxe5 {[%clk 0:04:57.4]} 3... Ng4 {[%clk 0:04:56.3]}
4. f4 {[%clk 0:04:56.1]} 4... Bc5 {[%clk 0:04:54.5]} 5. Nh3 {[%clk 0:04:51]}
5... Ne3 {[%clk 0:04:48.4]} 6. Bxe3 {[%clk 0:04:49.9]} 6... Bxe3 {[%clk
0:04:47.5]} 7. Qd3 {[%clk 0:04:49.4]} 7... Bc5 {[%clk 0:04:42.6]} 8. Nc3 {[%clk
0:04:48.3]} 8... O-O {[%clk 0:04:41.1]} 9. Ng5 {[%clk 0:04:47.3]} 9... g6 {[%clk
0:04:38.9]} 10. Qh3 {[%clk 0:04:43.8]} 10... h5 {[%clk 0:04:34.4]} 11. e3 {[%clk
0:04:39.3]} 11... d6 {[%clk 0:04:32]} 12. O-O-O {[%clk 0:04:37.9]} 12... Bxh3
{[%clk 0:04:30.9]} 0-1

[Event "Live Chess"]
[Site "Chess.com"]
[Date "2024.06.01"]
[Round "-"]
[White "Crowded_House"]
[Black "DJ_Lambton"]
[Result "1/2-1/2"]
[WhiteElo "1765"]
[BlackElo "1760"]
[TimeControl "300"]
[EndTime "9:01:24 PDT"]
[Termination "Game drawn by agreement"]

1. d4 {[%clk 0:04:58]} 1... c6 {[%clk 0:04:59.4]} 2. c3 {[%clk 0:04:55.1]} 2...
d5 {[%clk 0:04:58.7]} 3. Bg5 {[%clk 0:04:53.7]} 3... Bf5 {[%clk 0:04:57.4]} 4.
e3 {[%clk 0:04:52.2]} 4... Nd7 {[%clk 0:04:56.7]} 5. Bd3 {[%clk 0:04:51.1]} 5...
Bxd3 {[%clk 0:04:55.8]} 6. Qxd3 {[%clk 0:04:50.8]} 6... Ngf6 {[%clk 0:04:55.4]}
7. Nd2 {[%clk 0:04:48.8]} 7... e6 {[%clk 0:04:54.7]} 8. Ngf3 {[%clk 0:04:47.1]}
8... Be7 {[%clk 0:04:53.7]} 9. O-O {[%clk 0:04:45.4]} 9... O-O {[%clk
0:04:52.5]} 10. Rfe1 {[%clk 0:04:44.7]} 10... Rc8 {[%clk 0:04:51.3]} 11. e4
{[%clk 0:04:44.1]} 11... dxe4 {[%clk 0:04:50.4]} 12. Nxe4 {[%clk 0:04:43.5]}
12... Nxe4 {[%clk 0:04:49.7]} 13. Bxe7 {[%clk 0:04:42.8]} 13... Qxe7 {[%clk
0:04:48.9]} 14. Qxe4 {[%clk 0:04:39.5]} 14... Nf6 {[%clk 0:04:47.7]} 15. Qe5
{[%clk 0:04:37.9]} 15... c5 {[%clk 0:04:45.7]} 16. dxc5 {[%clk 0:04:27.3]} 16...
Rxc5 {[%clk 0:04:44.6]} 17. Qe2 {[%clk 0:04:22.5]} 17... Rd5 {[%clk 0:04:42.5]}
18. Red1 {[%clk 0:04:21]} 18... Rfd8 {[%clk 0:04:41]} 19. Rxd5 {[%clk
0:04:19.9]} 19... Rxd5 {[%clk 0:04:40.9]} 20. Rd1 {[%clk 0:04:18.8]} 20... h6
{[%clk 0:04:39.7]} 21. Rxd5 {[%clk 0:04:12.8]} 21... Nxd5 {[%clk 0:04:39.6]} 22.
h3 {[%clk 0:04:04.2]} 22... Qc7 {[%clk 0:04:37.6]} 23. Qe5 {[%clk 0:04:00.8]}
23... Qxe5 {[%clk 0:04:35.8]} 24. Nxe5 {[%clk 0:04:00.5]} 24... Kf8 {[%clk
0:04:35]} 1/2-1/2

[Event "Live Chess"]
[Site "Chess.com"]
[Date "2024.06.01"]
[Round "-"]
[White "Queensandpawns"]
[Black "Ocelot32"]
[Result "1-0"]
[WhiteElo "2489"]
[BlackElo "1390"]
[TimeControl "300"]
[EndTime "9:02:03 PDT"]
[Termination "Queensandpawns won by resignation"]

1. d4 {[%clk 0:04:58.9]} 1... Nf6 {[%clk 0:04:56.1]} 2. Nc3 {[%clk 0:04:58.8]}
2... d5 {[%clk 0:04:51.8]} 3. Bf4 {[%clk 0:04:43.5]} 3... c6 {[%clk 0:04:48.3]}
4. e3 {[%clk 0:04:42.7]} 4... Bf5 {[%clk 0:04:42.8]} 5. f3 {[%clk 0:04:42.6]}
5... Nbd7 {[%clk 0:04:34.8]} 6. g4 {[%clk 0:04:42.5]} 6... Bg6 {[%clk
0:04:32.4]} 7. h4 {[%clk 0:04:42.4]} 7... h6 {[%clk 0:04:30.9]} 8. h5 {[%clk
0:04:41.7]} 8... Bh7 {[%clk 0:04:29.7]} 9. Bd3 {[%clk 0:04:41.6]} 9... Bxd3
{[%clk 0:04:28]} 10. Qxd3 {[%clk 0:04:41.5]} 10... e6 {[%clk 0:04:23.8]} 11.
O-O-O {[%clk 0:04:40.3]} 11... Nb6 {[%clk 0:04:20.3]} 12. e4 {[%clk 0:04:39.3]}
12... dxe4 {[%clk 0:04:15.2]} 13. fxe4 {[%clk 0:04:39.2]} 13... Bb4 {[%clk
0:04:09]} 14. Nge2 {[%clk 0:04:37.3]} 14... Qe7 {[%clk 0:03:59.2]} 15. a3 {[%clk
0:04:35.4]} 15... Bd6 {[%clk 0:03:56.6]} 16. e5 {[%clk 0:04:34]} 16... Bxe5
{[%clk 0:03:54.6]} 17. dxe5 {[%clk 0:04:33.9]} 17... Nfd5 {[%clk 0:03:53]} 18.
Ne4 {[%clk 0:04:33.3]} 18... Nxf4 {[%clk 0:03:51.6]} 19. Nxf4 {[%clk 0:04:33.2]}
19... Rd8 {[%clk 0:03:49.9]} 20. Nd6+ {[%clk 0:04:32.3]} 20... Kf8 {[%clk
0:03:47.7]} 21. Rdf1 {[%clk 0:04:31.2]} 21... Nd5 {[%clk 0:03:44.4]} 22. Ng6+
{[%clk 0:04:29.9]} 1-0

[Event "Live Chess"]
[Site "Chess.com"]
[Date "2024.06.01"]
[Round "-"]
[White "TheSmoulderingMaster"]
[Black "Kyrylo7770"]
[Result "1-0"]
[WhiteElo "1729"]
[BlackElo "1716"]
[TimeControl "300"]
[EndTime "9:02:28 PDT"]
[Termination "TheSmoulderingMaster won by checkmate"]

1. e4 {[%clk 0:04:57.8]} 1... c6 {[%clk 0:04:58]} 2. d4 {[%clk 0:04:55.8]} 2...
d5 {[%clk 0:04:57.3]} 3. Nc3 {[%clk 0:04:54.7]} 3... Nf6 {[%clk 0:04:56.6]} 4.
e5 {[%clk 0:04:52.4]} 4... Ne4 {[%clk 0:04:55.6]} 5. Nxe4 {[%clk 0:04:50.6]}
5... dxe4 {[%clk 0:04:54.9]} 6. Ne2 {[%clk 0:04:48.9]} 6... Bf5 {[%clk
0:04:52.2]} 7. Ng3 {[%clk 0:04:43]} 7... Bg6 {[%clk 0:04:49.1]} 8. Bc4 {[%clk
0:04:39.8]} 8... e6 {[%clk 0:04:47.3]} 9. c3 {[%clk 0:04:38.3]} 9... b5 {[%clk
0:04:45.1]} 10. Bb3 {[%clk 0:04:37]} 10... b4 {[%clk 0:04:41.3]} 11. Bc2 {[%clk
0:04:35.6]} 11... Qd5 {[%clk 0:04:38.7]} 12. Qe2 {[%clk 0:04:30.9]} 12... bxc3
{[%clk 0:04:36.8]} 13. bxc3 {[%clk 0:04:28.9]} 13... e3 {[%clk 0:04:31.1]} 14.
Bxg6 {[%clk 0:04:27.2]} 14... hxg6 {[%clk 0:04:29.8]} 15. fxe3 {[%clk
0:04:24.1]} 15... c5 {[%clk 0:04:19.2]} 16. O-O {[%clk 0:04:20.3]} 16... cxd4
{[%clk 0:04:12.1]} 17. cxd4 {[%clk 0:04:19.3]} 17... Qd8 {[%clk 0:04:11.3]} 18.
Bb2 {[%clk 0:04:16.7]} 18... Qh4 {[%clk 0:04:10.2]} 19. Qf3 {[%clk 0:04:06.2]}
19... Qxh2+ {[%clk 0:04:05.7]} 20. Kf2 {[%clk 0:04:05]} 20... Nd7 {[%clk
0:03:50.8]} 21. Qxa8+ {[%clk 0:04:01.2]} 21... Ke7 {[%clk 0:03:45]} 22. Ba3+
{[%clk 0:04:00.5]} 22... Nc5 {[%clk 0:03:39.7]} 23. Bxc5+ {[%clk 0:03:59.6]}
23... Kd7 {[%clk 0:03:39.1]} 24. Qb7+ {[%clk 0:03:55.5]} 24... Ke8 {[%clk
0:03:36.9]} 25. Qc8# {[%clk 0:03:53.9]} 1-0

[Event "Live Chess"]
[Site "Chess.com"]
[Date "2024.06.01"]
[Round "-"]
[White "TedUdale"]
[Black "gmnorfolk"]
[Result "1-0"]
[WhiteElo "2171"]
[BlackElo "2132"]
[TimeControl "300"]
[EndTime "9:02:41 PDT"]
[Termination "TedUdale won by resignation"]

1. e4 {[%clk 0:04:56.1]} 1... c5 {[%clk 0:04:56.1]} 2. Nc3 {[%clk 0:04:54]} 2...
Nc6 {[%clk 0:04:54]} 3. f4 {[%clk 0:04:52.5]} 3... g6 {[%clk 0:04:52.6]} 4. Nf3
{[%clk 0:04:51.1]} 4... Bg7 {[%clk 0:04:52.4]} 5. Bc4 {[%clk 0:04:45.2]} 5... e6
{[%clk 0:04:49.8]} 6. d3 {[%clk 0:04:38.7]} 6... Nge7 {[%clk 0:04:44.2]} 7. O-O
{[%clk 0:04:37.5]} 7... d5 {[%clk 0:04:39.7]} 8. Bb3 {[%clk 0:04:36.2]} 8... b5
{[%clk 0:04:36]} 9. Nxb5 {[%clk 0:04:27.9]} 9... Qb6 {[%clk 0:04:26]} 10. c4
{[%clk 0:04:26.5]} 10... dxc4 {[%clk 0:04:07.3]} 11. Nd6+ {[%clk 0:04:16.9]}
11... Kf8 {[%clk 0:04:06.1]} 12. Nxc4 {[%clk 0:04:13.8]} 12... Qc7 {[%clk
0:04:04.5]} 13. Be3 {[%clk 0:04:09]} 13... Nd4 {[%clk 0:03:59.5]} 14. Nxd4
{[%clk 0:04:06]} 14... cxd4 {[%clk 0:03:58.2]} 15. Bd2 {[%clk 0:04:05.3]} 15...
Bb7 {[%clk 0:03:53.7]} 16. Rc1 {[%clk 0:04:03.4]} 16... Qd8 {[%clk 0:03:49.9]}
17. Qe1 {[%clk 0:04:01.4]} 17... f5 {[%clk 0:03:44.3]} 18. Ne5 {[%clk
0:03:53.8]} 18... Qd6 {[%clk 0:03:35.3]} 19. Bb4 {[%clk 0:03:49.9]} 19... Qb6
{[%clk 0:03:29.1]} 20. Nd7+ {[%clk 0:03:47.3]} 1-0

[Event "Live Chess"]
[Site "Chess.com"]
[Date "2024.06.01"]
[Round "-"]
[White "Inglaterra"]
[Black "resipsa6"]
[Result "0-1"]
[WhiteElo "2042"]
[BlackElo "2056"]
[TimeControl "300"]
[EndTime "9:03:02 PDT"]
[Termination "resipsa6 won by resignation"]

1. c4 {[%clk 0:04:57.6]} 1... c5 {[%clk 0:04:58.9]} 2. Nf3 {[%clk 0:04:56]} 2...
Nf6 {[%clk 0:04:57.6]} 3. Nc3 {[%clk 0:04:53.2]} 3... g6 {[%clk 0:04:57.1]} 4.
d4 {[%clk 0:04:51.8]} 4... cxd4 {[%clk 0:04:56.1]} 5. Nxd4 {[%clk 0:04:51.7]}
5... Nc6 {[%clk 0:04:54.9]} 6. g3 {[%clk 0:04:50.5]} 6... Bg7 {[%clk 0:04:52.8]}
7. Bg2 {[%clk 0:04:49.7]} 7... O-O {[%clk 0:04:48.7]} 8. O-O {[%clk 0:04:47.5]}
8... d6 {[%clk 0:04:40.3]} 9. Nxc6 {[%clk 0:04:44]} 9... bxc6 {[%clk 0:04:38.8]}
10. Bxc6 {[%clk 0:04:43.9]} 10... Rb8 {[%clk 0:04:38.3]} 11. Bg2 {[%clk
0:04:40.8]} 11... Bb7 {[%clk 0:04:37.1]} 12. Qc2 {[%clk 0:04:37]} 12... Bxg2
{[%clk 0:04:35.2]} 13. Kxg2 {[%clk 0:04:36.9]} 13... Qa5 {[%clk 0:04:32.3]} 14.
Bd2 {[%clk 0:04:31.5]} 14... Qc5 {[%clk 0:04:30.3]} 15. b3 {[%clk 0:04:27.4]}
15... d5 {[%clk 0:04:25.6]} 16. cxd5 {[%clk 0:04:18]} 16... Nxd5 {[%clk
0:04:19.5]} 17. Rac1 {[%clk 0:04:04.7]} 17... Nxc3 {[%clk 0:04:07]} 18. Bxc3
{[%clk 0:04:01.3]} 18... Rfc8 {[%clk 0:04:06]} 19. Qe4 {[%clk 0:03:44.4]} 19...
Bxc3 {[%clk 0:03:59.5]} 20. Rc2 {[%clk 0:03:40.6]} 20... Qc6 {[%clk 0:03:34]}
21. Qxc6 {[%clk 0:03:37.4]} 21... Rxc6 {[%clk 0:03:33.3]} 22. Rfc1 {[%clk
0:03:36.4]} 22... Rbc8 {[%clk 0:03:31.7]} 23. Kf3 {[%clk 0:03:31.8]} 23... R6c7
{[%clk 0:03:30.2]} 0-1

[Event "Live Chess"]
[Site "Chess.com"]
[Date "2024.06.01"]
[Round "-"]
[White "TJ-W"]
[Black "ClassyChameleon"]
[Result "1-0"]
[WhiteElo "1562"]
[BlackElo "1531"]
[TimeControl "300"]
[EndTime "9:03:24 PDT"]
[Termination "TJ-W won by checkmate"]

1. e4 {[%clk 0:04:58.6]} 1... e5 {[%clk 0:04:56.6]} 2. Nf3 {[%clk 0:04:57.9]}
2... Nc6 {[%clk 0:04:55.8]} 3. Bb5 {[%clk 0:04:56.8]} 3... a6 {[%clk 0:04:54.2]}
4. Ba4 {[%clk 0:04:55.1]} 4... b5 {[%clk 0:04:53.8]} 5. Bb3 {[%clk 0:04:54.2]}
5... Bb7 {[%clk 0:04:53.2]} 6. O-O {[%clk 0:04:49.6]} 6... Bc5 {[%clk
0:04:41.7]} 7. c3 {[%clk 0:04:41.5]} 7... Nf6 {[%clk 0:04:37.8]} 8. d4 {[%clk
0:04:35]} 8... exd4 {[%clk 0:04:36.7]} 9. cxd4 {[%clk 0:04:33.4]} 9... Bb6
{[%clk 0:04:36.2]} 10. Re1 {[%clk 0:04:30.3]} 10... Na5 {[%clk 0:04:27.9]} 11.
Bg5 {[%clk 0:04:26]} 11... h6 {[%clk 0:04:26.4]} 12. Bh4 {[%clk 0:04:22.5]}
12... g5 {[%clk 0:04:22.5]} 13. Bg3 {[%clk 0:04:19.2]} 13... Qe7 {[%clk
0:04:19]} 14. Ne5 {[%clk 0:04:11]} 14... Nxb3 {[%clk 0:04:12.3]} 15. axb3 {[%clk
0:04:08.1]} 15... O-O-O {[%clk 0:04:09.9]} 16. Nc3 {[%clk 0:04:03]} 16... Rde8
{[%clk 0:03:55.9]} 17. Rc1 {[%clk 0:03:51.3]} 17... Rh7 {[%clk 0:03:36.9]} 18.
Nd5 {[%clk 0:03:37.7]} 18... Nxd5 {[%clk 0:03:33.7]} 19. exd5 {[%clk 0:03:35.8]}
19... Qb4 {[%clk 0:03:18.4]} 20. Nxf7 {[%clk 0:03:24.3]} 20... Rxe1+ {[%clk
0:03:14.5]} 21. Qxe1 {[%clk 0:03:23.3]} 21... Qxe1+ {[%clk 0:03:14.1]} 22. Rxe1
{[%clk 0:03:22.6]} 22... Rxf7 {[%clk 0:03:13.9]} 23. Re8# {[%clk 0:03:21.7]} 1-0

[Event "Live Chess"]
[Site "Chess.com"]
[Date "2024.06.01"]
[Round "-"]
[White "Bunny55"]
[Black "ProfPoisson"]
[Result "0-1"]
[WhiteElo "1183"]
[BlackElo "1235"]
[TimeControl "300"]
[EndTime "9:03:44 PDT"]
[Termination "ProfPoisson won by checkmate"]

1. e4 {[%clk 0:04:39.4]} 1... e5 {[%clk 0:04:57.2]} 2. Nf3 {[%clk 0:04:37.1]}
2... Nf6 {[%clk 0:04:54.8]} 3. Nxe5 {[%clk 0:04:34.7]} 3... Nxe4 {[%clk
0:04:53.1]} 4. d4 {[%clk 0:04:32.7]} 4... d5 {[%clk 0:04:50.2]} 5. Bd3 {[%clk
0:04:28.3]} 5... Nd7 {[%clk 0:04:45.5]} 6. O-O {[%clk 0:04:26.9]} 6... Nxe5
{[%clk 0:04:43]} 7. dxe5 {[%clk 0:04:24.5]} 7... Be7 {[%clk 0:04:27.3]} 8. Re1
{[%clk 0:04:13.6]} 8... Bc5 {[%clk 0:04:17.7]} 9. Rf1 {[%clk 0:04:02]} 9... Bf5
{[%clk 0:04:09]} 10. a3 {[%clk 0:03:53.2]} 10... Qh4 {[%clk 0:04:07.2]} 11. g3
{[%clk 0:03:48.3]} 11... Nxg3 {[%clk 0:03:58.4]} 12. hxg3 {[%clk 0:03:42.6]}
12... Qxg3+ {[%clk 0:03:56.9]} 13. Kh1 {[%clk 0:03:32.4]} 13... Qh4+ {[%clk
0:03:46.1]} 14. Kg1 {[%clk 0:03:28.3]} 14... Bg4 {[%clk 0:03:28.1]} 15. Qd2
{[%clk 0:03:13.6]} 15... O-O-O {[%clk 0:03:20.5]} 16. Nc3 {[%clk 0:03:10.4]}
16... Bf3 {[%clk 0:03:08.4]} 17. Qg5 {[%clk 0:03:04.8]} 17... Qh1# {[%clk
0:03:05.4]} 0-1

[Event "Live Chess"]
[Site "Chess.com"]
[Date "2024.06.01"]
[Round "-"]
[White "Delacorta"]
[Black "booktrunk"]
[Result "1-0"]
[WhiteElo "1417"]
[BlackElo "1376"]
[TimeControl "300"]
[EndTime "9:03:52 PDT"]
[Termination "Delacorta won by checkmate"]

1. d4 {[%clk 0:04:54.9]} 1... e6 {[%clk 0:04:58.5]} 2. Nf3 {[%clk 0:04:52.9]}
2... Nf6 {[%clk 0:04:53]} 3. e3 {[%clk 0:04:51.5]} 3... b6 {[%clk 0:04:49.9]} 4.
Bd3 {[%clk 0:04:50.1]} 4... Bb7 {[%clk 0:04:46.8]} 5. O-O {[%clk 0:04:48.1]}
5... h6 {[%clk 0:04:44.1]} 6. b3 {[%clk 0:04:46.8]} 6... Be7 {[%clk 0:04:39.5]}
7. Bb2 {[%clk 0:04:45.4]} 7... d6 {[%clk 0:04:35.4]} 8. Nbd2 {[%clk 0:04:43.6]}
8... a5 {[%clk 0:04:31]} 9. c4 {[%clk 0:04:40.4]} 9... d5 {[%clk 0:04:21.1]} 10.
Qc2 {[%clk 0:04:33.8]} 10... dxc4 {[%clk 0:04:13.8]} 11. bxc4 {[%clk 0:04:28.7]}
11... O-O {[%clk 0:04:11.8]} 12. Ne5 {[%clk 0:04:15.3]} 12... Nbd7 {[%clk
0:04:06.8]} 13. f4 {[%clk 0:04:02.8]} 13... g6 {[%clk 0:03:57.2]} 14. Bxg6
{[%clk 0:03:39.4]} 14... Kg7 {[%clk 0:03:36.7]} 15. Bxf7 {[%clk 0:03:06]} 15...
Rxf7 {[%clk 0:03:32]} 16. Qg6+ {[%clk 0:02:49.8]} 16... Kh8 {[%clk 0:03:18.8]}
17. Nxf7# {[%clk 0:02:44.5]} 1-0

[Event "Live Chess"]
[Site "Chess.com"]
[Date "2024.06.01"]
[Round "-"]
[White "Duke_of_Bebington"]
[Black "peteopeteo"]
[Result "0-1"]
[WhiteElo "1618"]
[BlackElo "1610"]
[TimeControl "300"]
[EndTime "9:03:55 PDT"]
[Termination "peteopeteo won by resignation"]

1. e4 {[%clk 0:04:56.6]} 1... c6 {[%clk 0:04:55.4]} 2. d4 {[%clk 0:04:53.9]}
2... d5 {[%clk 0:04:54.5]} 3. e5 {[%clk 0:04:45.2]} 3... Bf5 {[%clk 0:04:52.4]}
4. g4 {[%clk 0:04:36.1]} 4... Bg6 {[%clk 0:04:50]} 5. h4 {[%clk 0:04:32.2]} 5...
h5 {[%clk 0:04:48.9]} 6. e6 {[%clk 0:04:30.1]} 6... Qd6 {[%clk 0:04:37]} 7.
exf7+ {[%clk 0:04:07.8]} 7... Bxf7 {[%clk 0:04:33.3]} 8. Nh3 {[%clk 0:03:59.2]}
8... Nd7 {[%clk 0:04:18.1]} 9. Nc3 {[%clk 0:03:52.5]} 9... Ndf6 {[%clk
0:04:13.3]} 10. Be2 {[%clk 0:03:41.7]} 10... O-O-O {[%clk 0:04:11.3]} 11. g5
{[%clk 0:03:29.7]} 11... Ng4 {[%clk 0:04:06.7]} 12. Bxg4+ {[%clk 0:03:28.2]}
12... hxg4 {[%clk 0:04:06.6]} 13. Qxg4+ {[%clk 0:03:26.7]} 13... Be6 {[%clk
0:04:04.9]} 14. Qg2 {[%clk 0:03:20.8]} 14... Bxh3 {[%clk 0:03:50]} 15. Rxh3
{[%clk 0:03:17.6]} 15... Qe6+ {[%clk 0:03:48.3]} 16. Re3 {[%clk 0:03:16.5]}
16... Qf5 {[%clk 0:03:36.2]} 17. Re2 {[%clk 0:03:08.3]} 17... Rxh4 {[%clk
0:03:20.9]} 18. Be3 {[%clk 0:03:06.2]} 18... Rg4 {[%clk 0:03:18.2]} 19. Qh3
{[%clk 0:03:02.2]} 19... Rg1+ {[%clk 0:03:14.9]} 20. Qf1 {[%clk 0:02:58.5]}
20... Rxf1+ {[%clk 0:03:13.4]} 21. Kxf1 {[%clk 0:02:58.4]} 21... Qh3+ {[%clk
0:03:12]} 22. Ke1 {[%clk 0:02:56.2]} 0-1

[Event "Live Chess"]
[Site "Chess.com"]
[Date "2024.06.01"]
[Round "-"]
[White "TheRedDrag"]
[Black "EdenHazard8"]
[Result "0-1"]
[WhiteElo "2185"]
[BlackElo "2193"]
[TimeControl "300"]
[EndTime "9:04:30 PDT"]
[Termination "EdenHazard8 won by resignation"]

1. e4 {[%clk 0:04:58.3]} 1... c6 {[%clk 0:04:58.9]} 2. d4 {[%clk 0:04:56.9]}
2... d5 {[%clk 0:04:58]} 3. Nc3 {[%clk 0:04:56.5]} 3... dxe4 {[%clk 0:04:56.3]}
4. Nxe4 {[%clk 0:04:56.4]} 4... Nf6 {[%clk 0:04:55.7]} 5. Nxf6+ {[%clk
0:04:55.5]} 5... exf6 {[%clk 0:04:55.6]} 6. c3 {[%clk 0:04:55.1]} 6... Bd6
{[%clk 0:04:51.7]} 7. Bd3 {[%clk 0:04:54.2]} 7... O-O {[%clk 0:04:50.4]} 8. Ne2
{[%clk 0:04:53.4]} 8... Re8 {[%clk 0:04:48.3]} 9. Qc2 {[%clk 0:04:52.7]} 9... f5
{[%clk 0:04:42.2]} 10. Bxf5 {[%clk 0:04:48]} 10... Bxf5 {[%clk 0:04:38.9]} 11.
Qxf5 {[%clk 0:04:47.9]} 11... Nd7 {[%clk 0:04:37.9]} 12. Be3 {[%clk 0:04:44]}
12... Nb6 {[%clk 0:04:32.4]} 13. O-O-O {[%clk 0:04:40.3]} 13... Nc4 {[%clk
0:04:26.3]} 14. Qd3 {[%clk 0:04:35.9]} 14... Nxe3 {[%clk 0:04:23]} 15. fxe3
{[%clk 0:04:34.2]} 15... Qg5 {[%clk 0:04:21.7]} 16. Qd2 {[%clk 0:04:25.6]} 16...
Qxe3 {[%clk 0:04:16]} 17. Rhe1 {[%clk 0:04:23.7]} 17... Qxd2+ {[%clk 0:04:13.2]}
18. Rxd2 {[%clk 0:04:22.5]} 18... Bxh2 {[%clk 0:04:11.8]} 19. Rf1 {[%clk
0:04:16.3]} 19... Bd6 {[%clk 0:04:07.6]} 20. Kc2 {[%clk 0:04:13.7]} 20... Re7
{[%clk 0:04:05.5]} 21. Nf4 {[%clk 0:04:12.5]} 21... g6 {[%clk 0:04:01.7]} 22.
Nd3 {[%clk 0:04:09]} 22... Rae8 {[%clk 0:03:59.5]} 23. Rff2 {[%clk 0:04:08.5]}
23... h5 {[%clk 0:03:55.1]} 24. b3 {[%clk 0:04:00.9]} 24... h4 {[%clk
0:03:53.5]} 25. Nf4 {[%clk 0:03:52.7]} 25... Re4 {[%clk 0:03:51.8]} 26. Nh3
{[%clk 0:03:49]} 26... Bg3 {[%clk 0:03:50.1]} 27. Rf3 {[%clk 0:03:44.5]} 27...
Re2 {[%clk 0:03:46.8]} 28. Ng5 {[%clk 0:03:43.1]} 28... f5 {[%clk 0:03:38.3]}
29. Kd3 {[%clk 0:03:37.8]} 29... Rxd2+ {[%clk 0:03:20.3]} 30. Kxd2 {[%clk
0:03:36.8]} 30... Kg7 {[%clk 0:03:16.2]} 31. Nh3 {[%clk 0:03:32.7]} 31... Kf6
{[%clk 0:03:09.4]} 32. Nf4 {[%clk 0:03:31.4]} 32... Bxf4+ {[%clk 0:03:05.2]} 33.
Rxf4 {[%clk 0:03:31.3]} 33... g5 {[%clk 0:03:04.8]} 34. Rf3 {[%clk 0:03:30.4]}
34... g4 {[%clk 0:03:03.1]} 35. Rf2 {[%clk 0:03:28.2]} 35... Kg5 {[%clk
0:03:01.5]} 36. Kd3 {[%clk 0:03:26.8]} 36... f4 {[%clk 0:02:59.6]} 37. c4 {[%clk
0:03:25.9]} 37... Re3+ {[%clk 0:02:56.3]} 38. Kd2 {[%clk 0:03:24.1]} 38... h3
{[%clk 0:02:55.2]} 39. gxh3 {[%clk 0:03:22.3]} 39... gxh3 {[%clk 0:02:54.2]} 40.
d5 {[%clk 0:03:21.5]} 40... cxd5 {[%clk 0:02:52.8]} 41. cxd5 {[%clk 0:03:21.4]}
41... Re5 {[%clk 0:02:51.6]} 42. Kc3 {[%clk 0:03:15.4]} 42... Rxd5 {[%clk
0:02:49.7]} 43. Kc4 {[%clk 0:03:14.9]} 43... Re5 {[%clk 0:02:47.9]} 44. Rf3
{[%clk 0:03:12.4]} 44... Kg4 {[%clk 0:02:46.3]} 45. Rf2 {[%clk 0:03:11.8]} 45...
Kg3 {[%clk 0:02:44.9]} 46. Rf1 {[%clk 0:03:11.5]} 46... h2 {[%clk 0:02:43.6]}
47. Kb4 {[%clk 0:03:08.5]} 47... Kg2 {[%clk 0:02:42.5]} 48. Rb1 {[%clk
0:03:07.4]} 48... h1=Q {[%clk 0:02:41.4]} 49. Rxh1 {[%clk 0:03:05.7]} 49... Kxh1
{[%clk 0:02:41.3]} 50. Ka3 {[%clk 0:03:05]} 50... f3 {[%clk 0:02:40.3]} 51. b4
{[%clk 0:03:04.1]} 51... f2 {[%clk 0:02:39.3]} 52. b5 {[%clk 0:03:04]} 52...
f1=Q {[%clk 0:02:37.3]} 53. b6 {[%clk 0:03:03.9]} 53... Qa6+ {[%clk 0:02:36.1]}
0-1

[Event "Live Chess"]
[Site "Chess.com"]
[Date "2024.06.01"]
[Round "-"]
[White "DJ_Lambton"]
[Black "WildMantra69"]
[Result "0-1"]
[WhiteElo "1753"]
[BlackElo "2017"]
[TimeControl "300"]
[EndTime "9:04:35 PDT"]
[Termination "WildMantra69 won by checkmate"]

1. c4 {[%clk 0:04:59.3]} 1... e5 {[%clk 0:04:59.2]} 2. g3 {[%clk 0:04:58.6]}
2... Nf6 {[%clk 0:04:57.9]} 3. Bg2 {[%clk 0:04:57.8]} 3... c6 {[%clk 0:04:57.3]}
4. d4 {[%clk 0:04:56.7]} 4... exd4 {[%clk 0:04:56.7]} 5. Qxd4 {[%clk 0:04:56.6]}
5... d5 {[%clk 0:04:56.2]} 6. cxd5 {[%clk 0:04:55]} 6... cxd5 {[%clk 0:04:56.1]}
7. Nc3 {[%clk 0:04:54.3]} 7... Be6 {[%clk 0:04:55.3]} 8. Nf3 {[%clk 0:04:53.2]}
8... Nc6 {[%clk 0:04:54.4]} 9. Qd1 {[%clk 0:04:52]} 9... Bb4 {[%clk 0:04:53.1]}
10. O-O {[%clk 0:04:50.5]} 10... O-O {[%clk 0:04:52.6]} 11. a3 {[%clk
0:04:49.5]} 11... Bxc3 {[%clk 0:04:52.1]} 12. bxc3 {[%clk 0:04:49.2]} 12... Ne4
{[%clk 0:04:51.8]} 13. Qc2 {[%clk 0:04:47.3]} 13... Qf6 {[%clk 0:04:50]} 14. Bb2
{[%clk 0:04:45.6]} 14... Rfc8 {[%clk 0:04:48.3]} 15. c4 {[%clk 0:04:44.5]} 15...
Qg6 {[%clk 0:04:46]} 16. cxd5 {[%clk 0:04:43.4]} 16... Bxd5 {[%clk 0:04:44.9]}
17. Qd3 {[%clk 0:04:40.7]} 17... Be6 {[%clk 0:04:43]} 18. Rac1 {[%clk 0:04:37]}
18... Ne7 {[%clk 0:04:40.3]} 19. Rfd1 {[%clk 0:04:36.2]} 19... Bf5 {[%clk
0:04:35.4]} 20. Qd4 {[%clk 0:04:34.7]} 20... f6 {[%clk 0:04:30.5]} 21. Nh4
{[%clk 0:04:32.6]} 21... Rxc1 {[%clk 0:04:17]} 22. Nxg6 {[%clk 0:04:28]} 22...
Rxd1+ {[%clk 0:04:15.9]} 23. Qxd1 {[%clk 0:04:27]} 23... Bxg6 {[%clk 0:04:08.9]}
24. Qb3+ {[%clk 0:04:23.6]} 24... Kf8 {[%clk 0:04:06.2]} 25. Bxe4 {[%clk
0:04:21.2]} 25... Bxe4 {[%clk 0:04:03.9]} 26. Qe3 {[%clk 0:04:19.9]} 26... Bc6
{[%clk 0:04:02.1]} 27. Bc3 {[%clk 0:04:18]} 27... a6 {[%clk 0:04:01]} 28. Bb4
{[%clk 0:04:17.3]} 28... Re8 {[%clk 0:03:59.2]} 29. Qc3 {[%clk 0:04:13.9]} 29...
Kg8 {[%clk 0:03:55.2]} 30. Bxe7 {[%clk 0:04:12.7]} 30... Rxe7 {[%clk 0:03:54.3]}
31. Qc4+ {[%clk 0:04:12.3]} 31... Kf8 {[%clk 0:03:53]} 32. f3 {[%clk 0:04:11.6]}
32... Bb5 {[%clk 0:03:50.2]} 33. Qb4 {[%clk 0:04:09.7]} 33... Bxe2 {[%clk
0:03:47.7]} 34. Kf2 {[%clk 0:04:09.2]} 34... Bb5 {[%clk 0:03:46.7]} 35. g4
{[%clk 0:04:07.7]} 35... Ke8 {[%clk 0:03:43.7]} 36. Qc5 {[%clk 0:04:05.4]} 36...
Re2+ {[%clk 0:03:40.9]} 37. Kg3 {[%clk 0:04:04.4]} 37... Re7 {[%clk 0:03:36.9]}
38. Qc8+ {[%clk 0:04:03.1]} 38... Kf7 {[%clk 0:03:36.2]} 39. h4 {[%clk 0:04:02]}
39... g6 {[%clk 0:03:34.9]} 40. Qc5 {[%clk 0:04:00.6]} 40... Bc6 {[%clk
0:03:32.9]} 41. Qc4+ {[%clk 0:03:59.4]} 41... Kg7 {[%clk 0:03:31.9]} 42. Qc3
{[%clk 0:03:56.6]} 42... Rd7 {[%clk 0:03:26.1]} 43. g5 {[%clk 0:03:55.4]} 43...
Rf7 {[%clk 0:03:24.1]} 44. gxf6+ {[%clk 0:03:52.9]} 44... Rxf6 {[%clk 0:03:24]}
45. Kg4 {[%clk 0:03:52.4]} 45... Bxf3+ {[%clk 0:03:19]} 46. Kg5 {[%clk 0:03:50]}
46... h6# {[%clk 0:03:16.9]} 0-1